[Event "Titled Tuesday Blitz July 25 Early 2023"]
[White "Zacurdajev, Dmitry"]
[Black "Lohani, Sujana"]
[WhiteFideId "4196309"]
[BlackFideId "12311987"]
[WhiteElo "2417"]
[BlackElo "1932"]
[Result "1-0"]
[Round "2"]
[TimeControl "180+2"]
[Date "2023.07.25"]
[WhiteClock "0:00:31"]
[BlackClock "0:00:01"]
[Board "253"]

1. d4 {[%clk 0:02:58]}  Nf6 {[%clk 0:02:52]} 2. c4 {[%clk 0:02:58]}  d6 {[%clk 0:02:51]} 3. Nc3 {[%clk 0:02:57]}  g6 {[%clk 0:02:52]} 4. e4 {[%clk 0:02:57]}  Bg7 {[%clk 0:02:53]} 5. Be2 {[%clk 0:02:58]}  O-O {[%clk 0:02:53]} 6. Be3 {[%clk 0:02:58]}  Nbd7 {[%clk 0:02:46]} 7. g4 {[%clk 0:02:57]}  e5 {[%clk 0:02:45]} 8. d5 {[%clk 0:02:57]}  b6 {[%clk 0:02:25]} 9. h4 {[%clk 0:02:52]}  Nc5 {[%clk 0:02:17]} 10. f3 {[%clk 0:02:50]}  h5 {[%clk 0:02:15]} 11. g5 {[%clk 0:02:35]}  Ne8 {[%clk 0:02:02]} 12. Qd2 {[%clk 0:02:14]}  a5 {[%clk 0:01:51]} 13. O-O-O {[%clk 0:02:09]}  a4 {[%clk 0:01:37]} 14. Kb1 {[%clk 0:02:02]}  Bd7 {[%clk 0:01:10]} 15. Bf1 {[%clk 0:01:51]}  Qb8 {[%clk 0:01:09]} 16. Bh3 {[%clk 0:01:48]}  Bxh3 {[%clk 0:01:07]} 17. Nxh3 {[%clk 0:01:49]}  a3 {[%clk 0:00:47]} 18. b3 {[%clk 0:01:46]}  Ra5 {[%clk 0:00:35]} 19. b4 {[%clk 0:01:41]}  Ra8 {[%clk 0:00:32]} 20. bxc5 {[%clk 0:01:39]}  bxc5+ {[%clk 0:00:32]} 21. Ka1 {[%clk 0:01:38]}  Qa7 {[%clk 0:00:28]} 22. Nb5 {[%clk 0:01:37]}  Qa4 {[%clk 0:00:23]} 23. Rc1 {[%clk 0:01:28]}  f5 {[%clk 0:00:20]} 24. Qc2 {[%clk 0:01:21]}  Qa5 {[%clk 0:00:17]} 25. Rb1 {[%clk 0:01:05]}  f4 {[%clk 0:00:16]} 26. Bd2 {[%clk 0:01:05]}  Qa6 {[%clk 0:00:13]} 27. Nf2 {[%clk 0:01:05]}  Rf7 {[%clk 0:00:12]} 28. Nd3 {[%clk 0:01:04]}  c6 {[%clk 0:00:12]} 29. dxc6 {[%clk 0:01:04]}  Qxc6 {[%clk 0:00:12]} 30. Rhd1 {[%clk 0:01:01]}  Nc7 {[%clk 0:00:10]} 31. Nxc7 {[%clk 0:00:58]}  Rxc7 {[%clk 0:00:09]} 32. Rb3 {[%clk 0:00:54]}  Qa4 {[%clk 0:00:07]} 33. Rb8+ {[%clk 0:00:46]}  Bf8 {[%clk 0:00:06]} 34. Qxa4 {[%clk 0:00:45]}  Rxa4 {[%clk 0:00:06]} 35. Rc1 {[%clk 0:00:45]}  Rca7 {[%clk 0:00:05]} 36. Kb1 {[%clk 0:00:34]}  Ra8 {[%clk 0:00:04]} 37. Rxa8 {[%clk 0:00:33]}  Rxa8 {[%clk 0:00:03]} 38. Kc2 {[%clk 0:00:34]}  Rb8 {[%clk 0:00:03]} 39. Rb1 {[%clk 0:00:34]}  Ra8 {[%clk 0:00:03]} 40. Rb7 {[%clk 0:00:32]}  Bg7 {[%clk 0:00:01]} 41. Kb3 {[%clk 0:00:32]}  Bf8 {[%clk 0:00:01]} 42. Bc1 {[%clk 0:00:31]} 1-0


[Site "https://www.chess.com"]

[Event "Titled Tuesday Blitz July 25 Early 2023"]
[White "Pakleza, Zbigniew"]
[Black "So, Wesley"]
[WhiteFideId "1119290"]
[BlackFideId "5202213"]
[WhiteElo "2775"]
[BlackElo "3105"]
[Result "1-0"]
[Round "3"]
[TimeControl "180+2"]
[Date "2023.07.25"]
[WhiteClock "0:00:02"]
[BlackClock "0:00:01"]
[Board "3"]

1. d4 {[%clk 0:03:00]}  d5 {[%clk 0:02:54]} 2. Nf3 {[%clk 0:03:01]}  e6 {[%clk 0:02:53]} 3. Bf4 {[%clk 0:03:01]}  Bd6 {[%clk 0:02:52]} 4. Bg3 {[%clk 0:03:01]}  c5 {[%clk 0:02:45]} 5. c3 {[%clk 0:03:01]}  cxd4 {[%clk 0:02:39]} 6. cxd4 {[%clk 0:02:59]}  Ne7 {[%clk 0:02:39]} 7. Nc3 {[%clk 0:02:58]}  Nf5 {[%clk 0:02:39]} 8. e3 {[%clk 0:02:59]}  Nc6 {[%clk 0:02:37]} 9. Bd3 {[%clk 0:02:59]}  Nxg3 {[%clk 0:02:37]} 10. hxg3 {[%clk 0:03:00]}  Bd7 {[%clk 0:02:35]} 11. Rc1 {[%clk 0:02:59]}  Rc8 {[%clk 0:02:34]} 12. a3 {[%clk 0:02:59]}  g6 {[%clk 0:02:29]} 13. O-O {[%clk 0:02:58]}  O-O {[%clk 0:02:29]} 14. Qe2 {[%clk 0:02:51]}  Re8 {[%clk 0:02:26]} 15. Rc2 {[%clk 0:02:42]}  Bf8 {[%clk 0:02:14]} 16. Rfc1 {[%clk 0:02:35]}  Bg7 {[%clk 0:02:12]} 17. Bb5 {[%clk 0:02:27]}  a6 {[%clk 0:02:10]} 18. Bxc6 {[%clk 0:02:26]}  Bxc6 {[%clk 0:02:10]} 19. Ne5 {[%clk 0:02:09]}  Bxe5 {[%clk 0:01:56]} 20. dxe5 {[%clk 0:02:10]}  Qg5 {[%clk 0:01:56]} 21. f4 {[%clk 0:01:46]}  Qxg3 {[%clk 0:01:56]} 22. Qf2 {[%clk 0:01:45]}  Qg4 {[%clk 0:01:49]} 23. Ne2 {[%clk 0:01:43]}  Bd7 {[%clk 0:01:30]} 24. Nd4 {[%clk 0:01:39]}  Rxc2 {[%clk 0:01:28]} 25. Rxc2 {[%clk 0:01:38]}  Bc6 {[%clk 0:01:11]} 26. Qf3 {[%clk 0:01:33]}  Qh4 {[%clk 0:01:11]} 27. Qf2 {[%clk 0:01:29]}  Qg4 {[%clk 0:01:10]} 28. Qf3 {[%clk 0:01:28]}  Qxf3 {[%clk 0:01:04]} 29. Nxf3 {[%clk 0:01:22]}  h5 {[%clk 0:01:04]} 30. Nd4 {[%clk 0:01:20]}  Rc8 {[%clk 0:01:04]} 31. Kf2 {[%clk 0:01:17]}  Kf8 {[%clk 0:01:04]} 32. Kg3 {[%clk 0:01:15]}  Kg7 {[%clk 0:00:53]} 33. Kh4 {[%clk 0:01:09]}  Kh6 {[%clk 0:00:53]} 34. Rc3 {[%clk 0:01:02]}  Rg8 {[%clk 0:00:49]} 35. Nxc6 {[%clk 0:00:53]}  bxc6 {[%clk 0:00:50]} 36. Rxc6 {[%clk 0:00:54]}  g5+ {[%clk 0:00:50]} 37. Kh3 {[%clk 0:00:53]}  gxf4 {[%clk 0:00:39]} 38. exf4 {[%clk 0:00:54]}  Rb8 {[%clk 0:00:31]} 39. f5 {[%clk 0:00:47]}  Kg5 {[%clk 0:00:24]} 40. fxe6 {[%clk 0:00:46]}  fxe6 {[%clk 0:00:25]} 41. b4 {[%clk 0:00:28]}  Kf5 {[%clk 0:00:20]} 42. Rxa6 {[%clk 0:00:26]}  Kxe5 {[%clk 0:00:18]} 43. Kg3 {[%clk 0:00:25]}  d4 {[%clk 0:00:17]} 44. Kf3 {[%clk 0:00:24]}  Rf8+ {[%clk 0:00:17]} 45. Ke2 {[%clk 0:00:24]}  Rg8 {[%clk 0:00:17]} 46. Kf3 {[%clk 0:00:22]}  Rf8+ {[%clk 0:00:16]} 47. Ke2 {[%clk 0:00:23]}  Rc8 {[%clk 0:00:14]} 48. b5 {[%clk 0:00:19]}  Rc2+ {[%clk 0:00:14]} 49. Kd1 {[%clk 0:00:17]}  Rxg2 {[%clk 0:00:14]} 50. b6 {[%clk 0:00:17]}  Rb2 {[%clk 0:00:14]} 51. a4 {[%clk 0:00:18]}  h4 {[%clk 0:00:14]} 52. Ra5+ {[%clk 0:00:17]}  Kd6 {[%clk 0:00:14]} 53. Ra6 {[%clk 0:00:09]}  h3 {[%clk 0:00:12]} 54. b7+ {[%clk 0:00:09]}  Kd7 {[%clk 0:00:11]} 55. Ra7 {[%clk 0:00:02]}  Kd6 {[%clk 0:00:11]} 56. Ra6+ {[%clk 0:00:01]}  Kd5 {[%clk 0:00:10]} 57. Ra5+ {[%clk 0:00:02]}  Kc6 {[%clk 0:00:11]} 58. Rh5 {[%clk 0:00:01]}  Rxb7 {[%clk 0:00:07]} 59. Rxh3 {[%clk 0:00:01]}  e5 {[%clk 0:00:07]} 60. a5 {[%clk 0:00:01]}  Ra7 {[%clk 0:00:07]} 61. Rh6+ {[%clk 0:00:01]}  Kd5 {[%clk 0:00:04]} 62. a6 {[%clk 0:00:02]}  d3 {[%clk 0:00:02]} 63. Kd2 {[%clk 0:00:02]}  e4 {[%clk 0:00:01]} 64. Ke3 {[%clk 0:00:02]} 1-0


[Site "https://www.chess.com"]

[Event "Titled Tuesday Blitz July 25 Early 2023"]
[White "Sarana, Alexey"]
[Black "Bauman_Guy"]
[WhiteFideId "24133795"]
[WhiteElo "3056"]
[BlackElo "2766"]
[Result "1-0"]
[Round "3"]
[TimeControl "180+2"]
[Date "2023.07.25"]
[WhiteClock "0:00:23"]
[BlackClock "0:00:02"]
[Board "5"]

1. d4 {[%clk 0:03:00]}  Nf6 {[%clk 0:02:59]} 2. c4 {[%clk 0:03:01]}  b6 {[%clk 0:02:59]} 3. Nc3 {[%clk 0:03:00]}  Bb7 {[%clk 0:02:59]} 4. f3 {[%clk 0:03:01]}  g6 {[%clk 0:02:53]} 5. e4 {[%clk 0:03:01]}  Bg7 {[%clk 0:02:54]} 6. Bd3 {[%clk 0:03:01]}  d6 {[%clk 0:02:52]} 7. Nge2 {[%clk 0:03:02]}  e5 {[%clk 0:02:52]} 8. Be3 {[%clk 0:02:59]}  a5 {[%clk 0:02:52]} 9. Qd2 {[%clk 0:02:59]}  Nbd7 {[%clk 0:02:49]} 10. Bc2 {[%clk 0:02:58]}  exd4 {[%clk 0:02:45]} 11. Nxd4 {[%clk 0:02:58]}  Nc5 {[%clk 0:02:45]} 12. O-O {[%clk 0:02:56]}  O-O {[%clk 0:02:45]} 13. b3 {[%clk 0:02:56]}  Re8 {[%clk 0:02:45]} 14. Rad1 {[%clk 0:02:56]}  Qc8 {[%clk 0:02:45]} 15. Ndb5 {[%clk 0:02:54]}  h5 {[%clk 0:02:44]} 16. Bg5 {[%clk 0:02:42]}  Ne6 {[%clk 0:02:44]} 17. Bh4 {[%clk 0:02:39]}  Nc5 {[%clk 0:02:25]} 18. Kh1 {[%clk 0:02:38]}  Nfd7 {[%clk 0:02:14]} 19. Nd5 {[%clk 0:02:28]}  Bxd5 {[%clk 0:02:13]} 20. cxd5 {[%clk 0:02:29]}  Bf6 {[%clk 0:02:07]} 21. Bf2 {[%clk 0:02:24]}  h4 {[%clk 0:02:07]} 22. a3 {[%clk 0:02:17]}  Ne5 {[%clk 0:02:05]} 23. Bd4 {[%clk 0:01:56]}  h3 {[%clk 0:01:46]} 24. f4 {[%clk 0:01:32]}  Ned7 {[%clk 0:01:33]} 25. gxh3 {[%clk 0:01:28]}  a4 {[%clk 0:01:31]} 26. b4 {[%clk 0:01:13]}  Nxe4 {[%clk 0:01:31]} 27. Bxe4 {[%clk 0:01:13]}  Rxe4 {[%clk 0:01:31]} 28. Qg2 {[%clk 0:01:13]}  Re7 {[%clk 0:00:49]} 29. f5 {[%clk 0:01:07]}  Bxd4 {[%clk 0:00:34]} 30. Nxd4 {[%clk 0:01:08]}  Ne5 {[%clk 0:00:34]} 31. Qg5 {[%clk 0:00:57]}  Qf8 {[%clk 0:00:31]} 32. fxg6 {[%clk 0:00:47]}  Nxg6 {[%clk 0:00:30]} 33. Rf6 {[%clk 0:00:47]}  Rae8 {[%clk 0:00:20]} 34. Nf3 {[%clk 0:00:39]}  Qg7 {[%clk 0:00:18]} 35. Rg1 {[%clk 0:00:40]}  Re3 {[%clk 0:00:18]} 36. h4 {[%clk 0:00:36]}  R8e5 {[%clk 0:00:12]} 37. Nxe5 {[%clk 0:00:25]}  Rxe5 {[%clk 0:00:12]} 38. Rf5 {[%clk 0:00:25]}  Kf8 {[%clk 0:00:02]} 39. h5 {[%clk 0:00:23]}  Rxf5 {[%clk 0:00:02]} 40. Qd8# {[%clk 0:00:23]} 1-0


[Site "https://www.chess.com"]

[Event "Titled Tuesday Blitz July 25 Early 2023"]
[White "Martinez Alcantara, Jose Eduardo"]
[Black "Xu, Yi"]
[WhiteFideId "3805662"]
[BlackFideId "8605564"]
[WhiteElo "2984"]
[BlackElo "2739"]
[Result "1-0"]
[Round "3"]
[TimeControl "180+2"]
[Date "2023.07.25"]
[WhiteClock "0:00:30"]
[BlackClock "0:00:07"]
[Board "11"]

1. e4 {[%clk 0:03:00]}  e5 {[%clk 0:02:58]} 2. Nf3 {[%clk 0:03:00]}  Nf6 {[%clk 0:02:59]} 3. Nc3 {[%clk 0:03:01]}  Nc6 {[%clk 0:02:59]} 4. h3 {[%clk 0:03:01]}  Bb4 {[%clk 0:02:50]} 5. a3 {[%clk 0:03:01]}  Bxc3 {[%clk 0:02:50]} 6. dxc3 {[%clk 0:03:02]}  Nxe4 {[%clk 0:02:42]} 7. Nxe5 {[%clk 0:03:02]}  Nxe5 {[%clk 0:02:37]} 8. Qd4 {[%clk 0:02:58]}  O-O {[%clk 0:02:35]} 9. Qxe4 {[%clk 0:02:59]}  d5 {[%clk 0:02:29]} 10. Qf4 {[%clk 0:02:58]}  Re8 {[%clk 0:02:26]} 11. Be3 {[%clk 0:02:58]}  Ng6 {[%clk 0:02:13]} 12. Qd4 {[%clk 0:02:57]}  c6 {[%clk 0:02:03]} 13. O-O-O {[%clk 0:02:56]}  Be6 {[%clk 0:02:02]} 14. h4 {[%clk 0:02:49]}  Ne7 {[%clk 0:01:57]} 15. g4 {[%clk 0:02:42]}  b6 {[%clk 0:01:43]} 16. Qf4 {[%clk 0:02:34]}  Qb8 {[%clk 0:01:40]} 17. Qf3 {[%clk 0:02:16]}  Qd6 {[%clk 0:01:29]} 18. h5 {[%clk 0:01:54]}  h6 {[%clk 0:01:24]} 19. g5 {[%clk 0:01:42]}  hxg5 {[%clk 0:01:23]} 20. Bxg5 {[%clk 0:01:32]}  Qe5 {[%clk 0:01:18]} 21. Rg1 {[%clk 0:01:27]}  Qe4 {[%clk 0:01:08]} 22. Qxe4 {[%clk 0:01:12]}  dxe4 {[%clk 0:01:08]} 23. h6 {[%clk 0:01:13]}  Ng6 {[%clk 0:01:01]} 24. Rd6 {[%clk 0:01:06]}  Rac8 {[%clk 0:00:55]} 25. Be2 {[%clk 0:00:56]}  gxh6 {[%clk 0:00:49]} 26. Bxh6 {[%clk 0:00:56]}  Red8 {[%clk 0:00:49]} 27. Rxe6 {[%clk 0:00:50]}  Kh7 {[%clk 0:00:28]} 28. Rexg6 {[%clk 0:00:49]}  fxg6 {[%clk 0:00:28]} 29. Be3 {[%clk 0:00:50]}  Rd5 {[%clk 0:00:26]} 30. b4 {[%clk 0:00:49]}  Kg7 {[%clk 0:00:25]} 31. c4 {[%clk 0:00:48]}  Rd6 {[%clk 0:00:23]} 32. c5 {[%clk 0:00:48]}  bxc5 {[%clk 0:00:22]} 33. Bxc5 {[%clk 0:00:49]}  Rd5 {[%clk 0:00:22]} 34. Be3 {[%clk 0:00:44]}  a5 {[%clk 0:00:21]} 35. c4 {[%clk 0:00:41]}  Rdd8 {[%clk 0:00:16]} 36. bxa5 {[%clk 0:00:41]}  c5 {[%clk 0:00:16]} 37. Rg5 {[%clk 0:00:39]}  Kf6 {[%clk 0:00:13]} 38. Rxc5 {[%clk 0:00:37]}  Rxc5 {[%clk 0:00:13]} 39. Bxc5 {[%clk 0:00:37]}  Ke5 {[%clk 0:00:14]} 40. Be3 {[%clk 0:00:36]}  Rc8 {[%clk 0:00:14]} 41. c5 {[%clk 0:00:36]}  Kd5 {[%clk 0:00:14]} 42. a6 {[%clk 0:00:35]}  Kc6 {[%clk 0:00:14]} 43. a4 {[%clk 0:00:32]}  Ra8 {[%clk 0:00:14]} 44. Bb5+ {[%clk 0:00:32]}  Kd5 {[%clk 0:00:15]} 45. c6 {[%clk 0:00:31]}  Kd6 {[%clk 0:00:15]} 46. Kc2 {[%clk 0:00:31]}  Rh8 {[%clk 0:00:12]} 47. a7 {[%clk 0:00:30]}  Kc7 {[%clk 0:00:12]} 48. Bf4+ {[%clk 0:00:30]}  Kb6 {[%clk 0:00:12]} 49. Bb8 {[%clk 0:00:30]}  Rf8 {[%clk 0:00:07]} 50. a8=Q {[%clk 0:00:30]}  Rxf2+ {[%clk 0:00:07]} 51. Kb3 {[%clk 0:00:30]} 1-0


[Site "https://www.chess.com"]

[Event "Titled Tuesday Blitz July 25 Early 2023"]
[White "Fantastic_Power"]
[Black "Anton Guijarro, David"]
[BlackFideId "2285525"]
[WhiteElo "2737"]
[BlackElo "2955"]
[Result "0-1"]
[Round "3"]
[TimeControl "180+2"]
[Date "2023.07.25"]
[WhiteClock "0:00:01"]
[BlackClock "0:00:04"]
[Board "14"]

1. e4 {[%clk 0:03:00]}  c6 {[%clk 0:02:59]} 2. d4 {[%clk 0:03:01]}  a6 {[%clk 0:03:00]} 3. Nc3 {[%clk 0:02:57]}  d5 {[%clk 0:03:00]} 4. Nf3 {[%clk 0:02:49]}  Bg4 {[%clk 0:03:00]} 5. h3 {[%clk 0:02:46]}  Bh5 {[%clk 0:02:58]} 6. e5 {[%clk 0:02:41]}  e6 {[%clk 0:02:57]} 7. Bd3 {[%clk 0:02:35]}  c5 {[%clk 0:02:56]} 8. dxc5 {[%clk 0:02:29]}  Bxc5 {[%clk 0:02:51]} 9. O-O {[%clk 0:02:27]}  Nc6 {[%clk 0:02:50]} 10. Bf4 {[%clk 0:02:23]}  Nge7 {[%clk 0:02:47]} 11. Re1 {[%clk 0:02:14]}  b5 {[%clk 0:02:30]} 12. a3 {[%clk 0:02:06]}  Qb6 {[%clk 0:02:24]} 13. Bg3 {[%clk 0:01:55]}  Nd4 {[%clk 0:02:13]} 14. Be2 {[%clk 0:01:52]}  Nxe2+ {[%clk 0:02:09]} 15. Qxe2 {[%clk 0:01:53]}  Rc8 {[%clk 0:01:53]} 16. Bh2 {[%clk 0:01:44]}  Bxf3 {[%clk 0:01:42]} 17. Qxf3 {[%clk 0:01:45]}  Bd4 {[%clk 0:01:35]} 18. Ne2 {[%clk 0:01:32]}  Bxb2 {[%clk 0:01:26]} 19. Rab1 {[%clk 0:01:32]}  Bd4 {[%clk 0:01:15]} 20. a4 {[%clk 0:01:32]}  O-O {[%clk 0:00:52]} 21. axb5 {[%clk 0:01:29]}  axb5 {[%clk 0:00:53]} 22. Bg3 {[%clk 0:00:58]}  Nf5 {[%clk 0:00:53]} 23. Qd3 {[%clk 0:00:44]}  Rc4 {[%clk 0:00:49]} 24. Nxd4 {[%clk 0:00:37]}  Nxd4 {[%clk 0:00:29]} 25. c3 {[%clk 0:00:28]}  Nf5 {[%clk 0:00:28]} 26. Bh2 {[%clk 0:00:29]}  Rfc8 {[%clk 0:00:25]} 27. Rb3 {[%clk 0:00:29]}  Qa5 {[%clk 0:00:16]} 28. Rf1 {[%clk 0:00:08]}  h5 {[%clk 0:00:08]} 29. f3 {[%clk 0:00:04]}  h4 {[%clk 0:00:08]} 30. Kh1 {[%clk 0:00:02]}  Rxc3 {[%clk 0:00:07]} 31. Qxb5 {[%clk 0:00:02]}  Qxb5 {[%clk 0:00:07]} 32. Rxb5 {[%clk 0:00:03]}  Rc2 {[%clk 0:00:07]} 33. Rbb1 {[%clk 0:00:04]}  Re2 {[%clk 0:00:07]} 34. Rbc1 {[%clk 0:00:04]}  Rxc1 {[%clk 0:00:06]} 35. Rxc1 {[%clk 0:00:05]}  g5 {[%clk 0:00:06]} 36. Bg1 {[%clk 0:00:03]}  Rxe5 {[%clk 0:00:05]} 37. Rc8+ {[%clk 0:00:02]}  Kg7 {[%clk 0:00:05]} 38. Bf2 {[%clk 0:00:03]}  Re2 {[%clk 0:00:05]} 39. Kg1 {[%clk 0:00:03]}  Ra2 {[%clk 0:00:05]} 40. Rb8 {[%clk 0:00:03]}  e5 {[%clk 0:00:05]} 41. Rb5 {[%clk 0:00:03]}  Rd2 {[%clk 0:00:05]} 42. Kf1 {[%clk 0:00:03]}  Ng3+ {[%clk 0:00:03]} 43. Kg1 {[%clk 0:00:02]}  f6 {[%clk 0:00:02]} 44. Rb7+ {[%clk 0:00:01]}  Kg6 {[%clk 0:00:02]} 45. Bc5 {[%clk 0:00:01]}  Rd1+ {[%clk 0:00:02]} 46. Kf2 {[%clk 0:00:02]}  d4 {[%clk 0:00:03]} 47. Bxd4 {[%clk 0:00:01]}  exd4 {[%clk 0:00:03]} 48. Rg7+ {[%clk 0:00:01]}  Kxg7 {[%clk 0:00:03]} 49. f4 {[%clk 0:00:01]}  Rf1# {[%clk 0:00:04]} 0-1


[Site "https://www.chess.com"]

[Event "Titled Tuesday Blitz July 25 Early 2023"]
[White "Csonka, Balazs"]
[Black "Ibarra Jerez, Jose Carlos"]
[WhiteFideId "742910"]
[BlackFideId "2226332"]
[WhiteElo "2733"]
[BlackElo "2947"]
[Result "1-0"]
[Round "3"]
[TimeControl "180+2"]
[Date "2023.07.25"]
[WhiteClock "0:00:06"]
[BlackClock "0:00:05"]
[Board "17"]

1. d4 {[%clk 0:03:00]}  Nf6 {[%clk 0:02:59]} 2. c4 {[%clk 0:03:00]}  d6 {[%clk 0:02:59]} 3. Nf3 {[%clk 0:02:56]}  g6 {[%clk 0:02:59]} 4. g3 {[%clk 0:02:56]}  Bf5 {[%clk 0:02:59]} 5. Nh4 {[%clk 0:02:48]}  Bd7 {[%clk 0:02:57]} 6. Bg2 {[%clk 0:02:47]}  Nc6 {[%clk 0:02:57]} 7. O-O {[%clk 0:02:42]}  Bg7 {[%clk 0:02:57]} 8. Nc3 {[%clk 0:02:42]}  O-O {[%clk 0:02:57]} 9. b3 {[%clk 0:02:15]}  a6 {[%clk 0:02:48]} 10. Bb2 {[%clk 0:02:06]}  Rb8 {[%clk 0:02:48]} 11. Rc1 {[%clk 0:02:05]}  e5 {[%clk 0:02:42]} 12. dxe5 {[%clk 0:01:40]}  Nxe5 {[%clk 0:02:37]} 13. Nf3 {[%clk 0:01:32]}  Nxf3+ {[%clk 0:02:28]} 14. Bxf3 {[%clk 0:01:33]}  b5 {[%clk 0:02:28]} 15. Qd3 {[%clk 0:00:58]}  Bf5 {[%clk 0:02:21]} 16. e4 {[%clk 0:00:49]}  Bh3 {[%clk 0:02:21]} 17. Rfd1 {[%clk 0:00:43]}  Nd7 {[%clk 0:02:17]} 18. Qe2 {[%clk 0:00:28]}  bxc4 {[%clk 0:02:14]} 19. Qxc4 {[%clk 0:00:28]}  Ne5 {[%clk 0:02:12]} 20. Qe2 {[%clk 0:00:28]}  Qf6 {[%clk 0:02:07]} 21. Rd3 {[%clk 0:00:13]}  Nxd3 {[%clk 0:02:03]} 22. Qxd3 {[%clk 0:00:14]}  Rfe8 {[%clk 0:01:56]} 23. Rc2 {[%clk 0:00:14]}  Qg5 {[%clk 0:01:22]} 24. Qxa6 {[%clk 0:00:12]}  Bd4 {[%clk 0:01:15]} 25. Qd3 {[%clk 0:00:10]}  c5 {[%clk 0:01:14]} 26. Bg2 {[%clk 0:00:11]}  Bd7 {[%clk 0:01:03]} 27. h4 {[%clk 0:00:10]}  Qe5 {[%clk 0:01:00]} 28. Kh2 {[%clk 0:00:10]}  Bc6 {[%clk 0:00:57]} 29. Re2 {[%clk 0:00:06]}  Qe7 {[%clk 0:00:48]} 30. Qd1 {[%clk 0:00:05]}  Qf6 {[%clk 0:00:45]} 31. Qe1 {[%clk 0:00:03]}  c4 {[%clk 0:00:41]} 32. b4 {[%clk 0:00:02]}  Qg7 {[%clk 0:00:19]} 33. a3 {[%clk 0:00:02]}  Re7 {[%clk 0:00:15]} 34. Nd1 {[%clk 0:00:02]}  Rbe8 {[%clk 0:00:15]} 35. Bxd4 {[%clk 0:00:02]}  Qxd4 {[%clk 0:00:16]} 36. Qc3 {[%clk 0:00:02]}  Qe5 {[%clk 0:00:08]} 37. Qxe5 {[%clk 0:00:02]}  Rxe5 {[%clk 0:00:08]} 38. Nc3 {[%clk 0:00:03]}  f5 {[%clk 0:00:06]} 39. Rd2 {[%clk 0:00:03]}  Bxe4 {[%clk 0:00:06]} 40. Bxe4 {[%clk 0:00:03]}  fxe4 {[%clk 0:00:07]} 41. Rxd6 {[%clk 0:00:03]}  e3 {[%clk 0:00:07]} 42. fxe3 {[%clk 0:00:03]}  Rxe3 {[%clk 0:00:08]} 43. Nd5 {[%clk 0:00:04]}  Re2+ {[%clk 0:00:07]} 44. Kh3 {[%clk 0:00:05]}  Kf7 {[%clk 0:00:06]} 45. Nf4 {[%clk 0:00:03]}  R2e3 {[%clk 0:00:05]} 46. Rd7+ {[%clk 0:00:02]}  R8e7 {[%clk 0:00:06]} 47. Rd4 {[%clk 0:00:03]}  Rc7 {[%clk 0:00:05]} 48. Nd5 {[%clk 0:00:03]}  Rd7 {[%clk 0:00:05]} 49. Rf4+ {[%clk 0:00:02]}  Ke6 {[%clk 0:00:05]} 50. Nxe3 {[%clk 0:00:03]}  c3 {[%clk 0:00:05]} 51. Rc4 {[%clk 0:00:04]}  Rd3 {[%clk 0:00:06]} 52. Ng4 {[%clk 0:00:04]}  Kd5 {[%clk 0:00:06]} 53. Rc5+ {[%clk 0:00:04]}  Kd4 {[%clk 0:00:06]} 54. a4 {[%clk 0:00:05]}  Rd2 {[%clk 0:00:06]} 55. a5 {[%clk 0:00:04]}  Rb2 {[%clk 0:00:06]} 56. a6 {[%clk 0:00:04]}  Rxb4 {[%clk 0:00:07]} 57. a7 {[%clk 0:00:04]}  Ra4 {[%clk 0:00:07]} 58. Rc7 {[%clk 0:00:04]}  h5 {[%clk 0:00:06]} 59. Nf2 {[%clk 0:00:04]}  Ke3 {[%clk 0:00:07]} 60. Nd1+ {[%clk 0:00:05]}  Ke2 {[%clk 0:00:05]} 61. Nxc3+ {[%clk 0:00:06]}  Kf1 {[%clk 0:00:05]} 62. Nxa4 {[%clk 0:00:06]} 1-0


[Site "https://www.chess.com"]

[Event "Titled Tuesday Blitz July 25 Early 2023"]
[White "Amilal Munkhdalai"]
[Black "Sjugirov, Sanan"]
[WhiteFideId "4903250"]
[BlackFideId "4189302"]
[WhiteElo "2732"]
[BlackElo "2942"]
[Result "1/2-1/2"]
[Round "3"]
[TimeControl "180+2"]
[Date "2023.07.25"]
[WhiteClock "0:01:49"]
[BlackClock "0:00:06"]
[Board "18"]

1. e4 {[%clk 0:03:00]}  c5 {[%clk 0:02:59]} 2. Nf3 {[%clk 0:03:00]}  d6 {[%clk 0:03:00]} 3. d4 {[%clk 0:03:00]}  cxd4 {[%clk 0:03:01]} 4. Nxd4 {[%clk 0:03:01]}  Nf6 {[%clk 0:03:01]} 5. f3 {[%clk 0:03:02]}  e5 {[%clk 0:02:59]} 6. Nb3 {[%clk 0:03:02]}  Be7 {[%clk 0:02:46]} 7. c4 {[%clk 0:03:01]}  a5 {[%clk 0:02:46]} 8. Be3 {[%clk 0:03:01]}  a4 {[%clk 0:02:44]} 9. Nc1 {[%clk 0:03:01]}  O-O {[%clk 0:02:41]} 10. Nc3 {[%clk 0:03:01]}  Qa5 {[%clk 0:02:39]} 11. Qd2 {[%clk 0:03:00]}  Nc6 {[%clk 0:02:25]} 12. Be2 {[%clk 0:02:58]}  Be6 {[%clk 0:01:56]} 13. Nd5 {[%clk 0:02:56]}  Bd8 {[%clk 0:01:46]} 14. Nd3 {[%clk 0:02:37]}  Nd7 {[%clk 0:01:19]} 15. Qxa5 {[%clk 0:02:31]}  Nxa5 {[%clk 0:01:08]} 16. Rc1 {[%clk 0:02:28]}  Rc8 {[%clk 0:01:03]} 17. N3b4 {[%clk 0:02:28]}  Nc6 {[%clk 0:00:53]} 18. Kf2 {[%clk 0:02:22]}  Nxb4 {[%clk 0:00:27]} 19. Nxb4 {[%clk 0:02:22]}  Ba5 {[%clk 0:00:27]} 20. Nd5 {[%clk 0:02:20]}  Bxd5 {[%clk 0:00:24]} 21. cxd5 {[%clk 0:02:19]}  Bb6 {[%clk 0:00:25]} 22. Bxb6 {[%clk 0:02:14]}  Nxb6 {[%clk 0:00:26]} 23. Bb5 {[%clk 0:02:12]}  f6 {[%clk 0:00:20]} 24. Ke3 {[%clk 0:02:11]}  Kf7 {[%clk 0:00:20]} 25. Kd2 {[%clk 0:02:10]}  Ke7 {[%clk 0:00:20]} 26. Rxc8 {[%clk 0:02:05]}  Rxc8 {[%clk 0:00:21]} 27. Rc1 {[%clk 0:02:05]}  Rc5 {[%clk 0:00:11]} 28. Rxc5 {[%clk 0:01:58]}  dxc5 {[%clk 0:00:12]} 29. a3 {[%clk 0:01:57]}  Kd6 {[%clk 0:00:11]} 30. Kc3 {[%clk 0:01:57]}  f5 {[%clk 0:00:07]} 31. Kd3 {[%clk 0:01:48]}  fxe4+ {[%clk 0:00:05]} 32. fxe4 {[%clk 0:01:49]}  Ke7 {[%clk 0:00:05]} 33. Ke3 {[%clk 0:01:47]}  Kd6 {[%clk 0:00:04]} 34. Kd3 {[%clk 0:01:47]}  Ke7 {[%clk 0:00:05]} 35. h4 {[%clk 0:01:47]}  Kd6 {[%clk 0:00:05]} 36. Ke3 {[%clk 0:01:48]}  Ke7 {[%clk 0:00:05]} 37. Kd3 {[%clk 0:01:48]}  Kd6 {[%clk 0:00:05]} 38. Ke3 {[%clk 0:01:48]}  Ke7 {[%clk 0:00:06]} 39. Kd3 {[%clk 0:01:49]} 1/2-1/2


[Site "https://www.chess.com"]